[Event "*** Titled Tuesday Blitz"]
[Site "Chess.com"]
[Date "2020.04.14"]
[Round "5"]
[White "lhavas"]
[Black "Hubbery"]
[Result "1/2-1/2"]
[WhiteElo "2408"]
[BlackElo "2583"]
[TimeControl "180+1"]
[EndTime "10:46:05 PDT"]
[Termination "Game drawn by agreement"]

1. d4 {[%clk 0:03:00.5]} 1... Nf6 {[%clk 0:02:58.8]} 2. Bg5 {[%clk 0:02:59.9]}
2... Ne4 {[%clk 0:02:58.2]} 3. h4 {[%clk 0:02:59.5]} 3... d5 {[%clk 0:02:56.5]}
4. Nd2 {[%clk 0:02:58.9]} 4... Bf5 {[%clk 0:02:52.8]} 5. Nxe4 {[%clk 0:02:58.2]}
5... Bxe4 {[%clk 0:02:52.7]} 6. Nf3 {[%clk 0:02:58.7]} 6... f6 {[%clk
0:02:52.2]} 7. Bf4 {[%clk 0:02:56.8]} 7... e6 {[%clk 0:02:52.2]} 8. e3 {[%clk
0:02:54.6]} 8... c5 {[%clk 0:02:48.9]} 9. Bxb8 {[%clk 0:02:47.5]} 9... Rxb8
{[%clk 0:02:48]} 10. Bb5+ {[%clk 0:02:47.8]} 10... Kf7 {[%clk 0:02:48.2]} 11. c3
{[%clk 0:02:39.7]} 11... Qb6 {[%clk 0:02:37.9]} 12. Qe2 {[%clk 0:02:34.9]} 12...
a6 {[%clk 0:02:32.5]} 13. Ba4 {[%clk 0:02:34.8]} 13... Qa5 {[%clk 0:02:29.9]}
14. Bc2 {[%clk 0:02:24.4]} 14... Bd6 {[%clk 0:02:23.6]} 15. Bxe4 {[%clk
0:02:17.7]} 15... dxe4 {[%clk 0:02:24.5]} 16. Nd2 {[%clk 0:02:07.1]} 1/2-1/2

[Event "*** Titled Tuesday Blitz"]
[Site "Chess.com"]
[Date "2020.04.14"]
[Round "5"]
[White "goldenspine"]
[Black "LizaSolovyova"]
[Result "0-1"]
[WhiteElo "2325"]
[BlackElo "2612"]
[TimeControl "180+1"]
[EndTime "10:46:27 PDT"]
[Termination "LizaSolovyova won by resignation"]

1. d4 {[%clk 0:02:55.5]} 1... f5 {[%clk 0:02:59.5]} 2. c4 {[%clk 0:02:53.8]}
2... Nf6 {[%clk 0:02:59.7]} 3. Nc3 {[%clk 0:02:54.7]} 3... e6 {[%clk 0:03:00.1]}
4. e4 {[%clk 0:02:53]} 4... fxe4 {[%clk 0:02:55.3]} 5. f3 {[%clk 0:02:51.2]}
5... Bb4 {[%clk 0:02:51.7]} 6. fxe4 {[%clk 0:02:48.6]} 6... O-O {[%clk 0:02:48]}
7. Bd3 {[%clk 0:02:44.4]} 7... Nxe4 {[%clk 0:02:35.4]} 8. Ne2 {[%clk 0:02:28.8]}
8... Nf2 {[%clk 0:02:21.8]} 9. Qc2 {[%clk 0:02:25.3]} 9... Nxh1 {[%clk
0:02:15.5]} 10. Bxh7+ {[%clk 0:02:23]} 10... Kh8 {[%clk 0:02:15.1]} 11. Bf4
{[%clk 0:02:17.6]} 11... Qh4+ {[%clk 0:02:13.2]} 12. g3 {[%clk 0:02:08.9]} 12...
Qxh7 {[%clk 0:02:11.9]} 13. Qxh7+ {[%clk 0:02:07.8]} 13... Kxh7 {[%clk
0:02:11.8]} 0-1

[Event "*** Titled Tuesday Blitz"]
[Site "Chess.com"]
[Date "2020.04.14"]
[Round "5"]
[White "donotreadit"]
[Black "Kimster98"]
[Result "0-1"]
[WhiteElo "2689"]
[BlackElo "2544"]
[TimeControl "180+1"]
[EndTime "10:46:37 PDT"]
[Termination "Kimster98 won by resignation"]

1. Nf3 {[%clk 0:03:00.9]} 1... d5 {[%clk 0:02:59.8]} 2. b3 {[%clk 0:03:00.6]}
2... Nf6 {[%clk 0:02:54.6]} 3. Bb2 {[%clk 0:03:00.7]} 3... Bf5 {[%clk
0:02:54.2]} 4. g3 {[%clk 0:03:00.1]} 4... h6 {[%clk 0:02:53.8]} 5. Bg2 {[%clk
0:03:00.6]} 5... e6 {[%clk 0:02:54.2]} 6. O-O {[%clk 0:03:01.2]} 6... Nbd7
{[%clk 0:02:52.6]} 7. c4 {[%clk 0:03:01.1]} 7... c6 {[%clk 0:02:52.4]} 8. d4
{[%clk 0:02:54]} 8... Bd6 {[%clk 0:02:48.8]} 9. Nc3 {[%clk 0:02:52.8]} 9... Ne4
{[%clk 0:02:47.6]} 10. Nh4 {[%clk 0:02:50.3]} 10... Nxc3 {[%clk 0:02:46.9]} 11.
Bxc3 {[%clk 0:02:46.4]} 11... Bh7 {[%clk 0:02:45.8]} 12. f4 {[%clk 0:02:44.4]}
12... Be7 {[%clk 0:02:34.4]} 13. Nf3 {[%clk 0:02:39.6]} 13... Be4 {[%clk
0:02:29.5]} 14. e3 {[%clk 0:02:39.1]} 14... f5 {[%clk 0:02:24.9]} 15. c5 {[%clk
0:02:18]} 15... g5 {[%clk 0:02:15.7]} 16. Ne5 {[%clk 0:02:15.9]} 16... Bxg2
{[%clk 0:02:12.4]} 17. Qe2 {[%clk 0:02:14.6]} 17... Nxe5 {[%clk 0:02:08.7]} 0-1

[Event "*** Titled Tuesday Blitz"]
[Site "Chess.com"]
[Date "2020.04.14"]
[Round "5"]
[White "ChessAintFun"]
[Black "Leo_C"]
[Result "1-0"]
[WhiteElo "2524"]
[BlackElo "2257"]
[TimeControl "180+1"]
[EndTime "10:46:53 PDT"]
[Termination "ChessAintFun won by resignation"]

1. e4 {[%clk 0:03:00.9]} 1... c5 {[%clk 0:02:57.2]} 2. Nf3 {[%clk 0:03:00.8]}
2... Nc6 {[%clk 0:02:57.1]} 3. d4 {[%clk 0:03:01.4]} 3... cxd4 {[%clk
0:02:57.7]} 4. Nxd4 {[%clk 0:03:02.3]} 4... Nf6 {[%clk 0:02:57.2]} 5. Nc3 {[%clk
0:03:02.9]} 5... e5 {[%clk 0:02:57.5]} 6. Ndb5 {[%clk 0:03:03.4]} 6... d6 {[%clk
0:02:57.5]} 7. Bg5 {[%clk 0:03:04.1]} 7... a6 {[%clk 0:02:57.5]} 8. Na3 {[%clk
0:03:04.8]} 8... b5 {[%clk 0:02:57.8]} 9. Bxf6 {[%clk 0:03:05.6]} 9... gxf6
{[%clk 0:02:57.8]} 10. Nd5 {[%clk 0:03:06.4]} 10... f5 {[%clk 0:02:58.4]} 11. c3
{[%clk 0:03:07]} 11... Be6 {[%clk 0:02:57.3]} 12. exf5 {[%clk 0:03:05.9]} 12...
Bxf5 {[%clk 0:02:56.9]} 13. Nc2 {[%clk 0:03:06.6]} 13... Bg7 {[%clk 0:02:55.3]}
14. Nce3 {[%clk 0:03:07.3]} 14... Be6 {[%clk 0:02:55.6]} 15. Bd3 {[%clk
0:03:08.1]} 15... O-O {[%clk 0:02:51.4]} 16. Qh5 {[%clk 0:03:07.8]} 16... f5
{[%clk 0:02:48.8]} 17. Bxf5 {[%clk 0:02:39.2]} 17... Bxf5 {[%clk 0:02:45.1]} 18.
Nxf5 {[%clk 0:02:40.1]} 18... Ra7 {[%clk 0:02:33.4]} 19. O-O {[%clk 0:02:36.8]}
19... Raf7 {[%clk 0:02:32.1]} 20. g4 {[%clk 0:02:30.1]} 20... e4 {[%clk
0:02:25.7]} 21. Rae1 {[%clk 0:02:23.2]} 21... Ne5 {[%clk 0:02:17.1]} 22. Rxe4
{[%clk 0:02:20.7]} 22... Nf3+ {[%clk 0:02:16.9]} 23. Kh1 {[%clk 0:02:19.3]}
23... Nd2 {[%clk 0:02:16.5]} 24. Nde7+ {[%clk 0:02:13.3]} 24... Rxe7 {[%clk
0:01:58.8]} 25. Nxe7+ {[%clk 0:02:13.1]} 25... Kh8 {[%clk 0:01:59.1]} 26. Ng6+
{[%clk 0:02:09.8]} 26... Kg8 {[%clk 0:01:58.3]} 27. Qd5+ {[%clk 0:02:05.5]} 1-0

[Event "*** Titled Tuesday Blitz"]
[Site "Chess.com"]
[Date "2020.04.14"]
[Round "5"]
[White "Aryangholami"]
[Black "PchelkinVK"]
[Result "1/2-1/2"]
[WhiteElo "2720"]
[BlackElo "2474"]
[TimeControl "180+1"]
[EndTime "10:47:02 PDT"]
[Termination "Game drawn by repetition"]

1. Nf3 {[%clk 0:03:00.9]} 1... Nc6 {[%clk 0:02:58.8]} 2. g3 {[%clk 0:03:01.8]}
2... e5 {[%clk 0:02:58.7]} 3. Bg2 {[%clk 0:03:02.7]} 3... e4 {[%clk 0:02:58.9]}
4. Ng1 {[%clk 0:03:01.9]} 4... Nf6 {[%clk 0:02:59.2]} 5. c4 {[%clk 0:03:01.1]}
5... Bc5 {[%clk 0:02:57.5]} 6. Nc3 {[%clk 0:02:58]} 6... Qe7 {[%clk 0:02:55.2]}
7. Nh3 {[%clk 0:02:56.7]} 7... d6 {[%clk 0:02:48.1]} 8. Nf4 {[%clk 0:02:56.7]}
8... Bf5 {[%clk 0:02:36.1]} 9. Nfd5 {[%clk 0:02:55.8]} 9... Nxd5 {[%clk
0:02:35.2]} 10. cxd5 {[%clk 0:02:54.3]} 10... Nd4 {[%clk 0:02:01.9]} 11. O-O
{[%clk 0:02:48]} 11... h5 {[%clk 0:01:56.1]} 12. e3 {[%clk 0:02:25.4]} 12... Bg4
{[%clk 0:01:50.1]} 13. Qa4+ {[%clk 0:02:20.9]} 13... Bd7 {[%clk 0:01:48.1]} 14.
Qd1 {[%clk 0:02:15.7]} 14... Bg4 {[%clk 0:01:47.2]} 15. Qa4+ {[%clk 0:02:14.1]}
15... Bd7 {[%clk 0:01:46.3]} 16. Qd1 {[%clk 0:01:41.3]} 16... Bg4 {[%clk
0:01:45]} 1/2-1/2

[Event "*** Titled Tuesday Blitz"]
[Site "Chess.com"]
[Date "2020.04.14"]
[Round "5"]
[White "powermove"]
[Black "northridgehawk"]
[Result "0-1"]
[WhiteElo "1505"]
[BlackElo "2280"]
[TimeControl "180+1"]
[EndTime "10:47:05 PDT"]
[Termination "northridgehawk won by resignation"]

1. Nf3 {[%clk 0:03:00.9]} 1... Nf6 {[%clk 0:02:48.3]} 2. c4 {[%clk 0:02:54.4]}
2... g6 {[%clk 0:02:46.1]} 3. Nc3 {[%clk 0:02:53.6]} 3... d5 {[%clk 0:02:44.2]}
4. cxd5 {[%clk 0:02:52.8]} 4... Nxd5 {[%clk 0:02:45.1]} 5. e4 {[%clk 0:02:52.8]}
5... Nxc3 {[%clk 0:02:42.3]} 6. dxc3 {[%clk 0:02:52.6]} 6... Bg7 {[%clk
0:02:43.2]} 7. Qxd8+ {[%clk 0:02:51.8]} 7... Kxd8 {[%clk 0:02:44.1]} 8. Bf4
{[%clk 0:02:50.1]} 8... c6 {[%clk 0:02:39.8]} 9. O-O-O+ {[%clk 0:02:49.3]} 9...
Ke8 {[%clk 0:02:39.3]} 10. Be2 {[%clk 0:02:29.9]} 10... Be6 {[%clk 0:02:38.9]}
11. Kb1 {[%clk 0:02:25.3]} 11... h6 {[%clk 0:02:37.3]} 12. Nd4 {[%clk
0:02:22.7]} 12... Bd7 {[%clk 0:02:35.1]} 13. Rd2 {[%clk 0:02:17.9]} 13... e5
{[%clk 0:02:35]} 14. Be3 {[%clk 0:02:06.4]} 14... exd4 {[%clk 0:02:32.9]} 15.
cxd4 {[%clk 0:02:06.4]} 15... Ke7 {[%clk 0:02:28.8]} 16. d5 {[%clk 0:01:56.7]}
16... cxd5 {[%clk 0:02:11.7]} 17. Bc5+ {[%clk 0:01:54]} 17... Ke8 {[%clk
0:02:09.5]} 18. exd5 {[%clk 0:01:53.9]} 18... Bf5+ {[%clk 0:02:09.2]} 19. Ka1
{[%clk 0:01:53.1]} 19... Nd7 {[%clk 0:02:09.1]} 20. Bb5 {[%clk 0:01:51.3]} 20...
Kd8 {[%clk 0:02:08.2]} 21. h3 {[%clk 0:01:41]} 21... Nxc5 {[%clk 0:02:05.7]} 0-1

[Event "*** Titled Tuesday Blitz"]
[Site "Chess.com"]
[Date "2020.04.14"]
[Round "5"]
[White "Izoria123"]
[Black "Neimar24"]
[Result "1-0"]
[WhiteElo "2792"]
[BlackElo "2544"]
[TimeControl "180+1"]
[EndTime "10:47:20 PDT"]
[Termination "Izoria123 won by resignation"]

1. Nf3 {[%clk 0:03:00.9]} 1... Nf6 {[%clk 0:02:59.6]} 2. c4 {[%clk 0:03:00.4]}
2... e6 {[%clk 0:02:59.9]} 3. Nc3 {[%clk 0:02:59.9]} 3... d5 {[%clk 0:02:59.9]}
4. e3 {[%clk 0:02:59.7]} 4... Be7 {[%clk 0:02:58.6]} 5. b3 {[%clk 0:02:59.6]}
5... b6 {[%clk 0:02:56.1]} 6. Bb2 {[%clk 0:02:59]} 6... Bb7 {[%clk 0:02:55.7]}
7. d4 {[%clk 0:02:53.3]} 7... O-O {[%clk 0:02:51.2]} 8. Bd3 {[%clk 0:02:53.8]}
8... Nbd7 {[%clk 0:02:46.4]} 9. O-O {[%clk 0:02:53.1]} 9... c5 {[%clk
0:02:42.4]} 10. cxd5 {[%clk 0:02:52.6]} 10... exd5 {[%clk 0:02:39.5]} 11. Rc1
{[%clk 0:02:50.1]} 11... Rc8 {[%clk 0:02:37.5]} 12. Qe2 {[%clk 0:02:49.6]} 12...
cxd4 {[%clk 0:02:30.8]} 13. Nxd4 {[%clk 0:02:46.8]} 13... Nc5 {[%clk 0:02:30.3]}
14. Bf5 {[%clk 0:02:43.3]} 14... Ba6 {[%clk 0:02:26.3]} 15. Ncb5 {[%clk
0:02:43.6]} 15... Nfd7 {[%clk 0:02:04.1]} 16. b4 {[%clk 0:02:28.2]} 16... Na4
{[%clk 0:01:57.8]} 17. Ba1 {[%clk 0:02:27.2]} 17... Rxc1 {[%clk 0:01:48.8]} 18.
Rxc1 {[%clk 0:02:28.1]} 18... Ne5 {[%clk 0:01:47.8]} 19. Qc2 {[%clk 0:02:18.1]}
19... Bxb5 {[%clk 0:01:36.1]} 20. Nxb5 {[%clk 0:02:16.7]} 20... a6 {[%clk
0:01:36.4]} 21. Na7 {[%clk 0:02:00.4]} 21... Nc4 {[%clk 0:01:24.4]} 22. Nc6
{[%clk 0:01:58.4]} 1-0

[Event "*** Titled Tuesday Blitz"]
[Site "Chess.com"]
[Date "2020.04.14"]
[Round "5"]
[White "NTBT_DHS"]
[Black "Onwgs"]
[Result "0-1"]
[WhiteElo "2545"]
[BlackElo "2406"]
[TimeControl "180+1"]
[EndTime "10:47:29 PDT"]
[Termination "Onwgs won by resignation"]

1. d4 {[%clk 0:03:00.9]} 1... Nf6 {[%clk 0:02:58.5]} 2. c4 {[%clk 0:02:59.5]}
2... g6 {[%clk 0:02:58.6]} 3. Nc3 {[%clk 0:02:59]} 3... d5 {[%clk 0:02:59.2]} 4.
cxd5 {[%clk 0:02:59.5]} 4... Nxd5 {[%clk 0:03:00.1]} 5. e4 {[%clk 0:02:58.8]}
5... Nxc3 {[%clk 0:03:00.5]} 6. bxc3 {[%clk 0:02:59.7]} 6... Bg7 {[%clk
0:03:01.1]} 7. Be3 {[%clk 0:02:57.3]} 7... c5 {[%clk 0:03:01.4]} 8. Nf3 {[%clk
0:02:56.2]} 8... Nc6 {[%clk 0:02:50.6]} 9. Rc1 {[%clk 0:02:54.2]} 9... cxd4
{[%clk 0:02:46.1]} 10. cxd4 {[%clk 0:02:53]} 10... Qa5+ {[%clk 0:02:46.8]} 11.
Qd2 {[%clk 0:02:53.1]} 11... Qxd2+ {[%clk 0:02:47.3]} 12. Kxd2 {[%clk 0:02:54]}
12... O-O {[%clk 0:02:47.5]} 13. Bb5 {[%clk 0:02:52.1]} 13... f5 {[%clk
0:02:46.9]} 14. Bxc6 {[%clk 0:02:49.7]} 14... bxc6 {[%clk 0:02:47]} 15. e5
{[%clk 0:02:48.4]} 15... f4 {[%clk 0:02:46.6]} 16. Rxc6 {[%clk 0:02:47.3]} 16...
fxe3+ {[%clk 0:02:46.3]} 17. fxe3 {[%clk 0:02:44.3]} 17... Rb8 {[%clk
0:02:44.6]} 18. Rhc1 {[%clk 0:02:39.7]} 18... Bf5 {[%clk 0:02:43.5]} 19. Ke1
{[%clk 0:02:20.7]} 19... Rb2 {[%clk 0:02:42]} 20. Nd2 {[%clk 0:02:21.1]} 20...
Bh6 {[%clk 0:02:38.9]} 21. R1c3 {[%clk 0:02:11.9]} 21... Rxa2 {[%clk 0:02:38.5]}
22. h3 {[%clk 0:02:09]} 22... Bd7 {[%clk 0:02:29.2]} 23. Rc7 {[%clk 0:02:05.4]}
23... Bb5 {[%clk 0:02:29.2]} 24. Kd1 {[%clk 0:01:21.2]} 24... Rf2 {[%clk
0:02:21.2]} 25. Rc2 {[%clk 0:01:15.6]} 25... Ba4 {[%clk 0:02:19]} 0-1

[Event "*** Titled Tuesday Blitz"]
[Site "Chess.com"]
[Date "2020.04.14"]
[Round "5"]
[White "dretch"]
[Black "Chesswizard_2007"]
[Result "0-1"]
[WhiteElo "2747"]
[BlackElo "2619"]
[TimeControl "180+1"]
[EndTime "10:47:30 PDT"]
[Termination "Chesswizard_2007 won by resignation"]

1. d4 {[%clk 0:03:00.9]} 1... Nf6 {[%clk 0:02:48.8]} 2. c4 {[%clk 0:03:00.5]}
2... g6 {[%clk 0:02:46.8]} 3. Nc3 {[%clk 0:03:00]} 3... Bg7 {[%clk 0:02:43.3]}
4. e4 {[%clk 0:02:59.9]} 4... d6 {[%clk 0:02:43.3]} 5. Nf3 {[%clk 0:03:00.1]}
5... O-O {[%clk 0:02:43.9]} 6. h3 {[%clk 0:03:00.4]} 6... c5 {[%clk 0:02:41.1]}
7. d5 {[%clk 0:03:00.1]} 7... e6 {[%clk 0:02:40.6]} 8. Bd3 {[%clk 0:03:00.4]}
8... a6 {[%clk 0:02:40.4]} 9. O-O {[%clk 0:02:57.4]} 9... e5 {[%clk 0:02:28.3]}
10. Bg5 {[%clk 0:02:52.4]} 10... h6 {[%clk 0:02:27.7]} 11. Be3 {[%clk
0:02:51.5]} 11... Nh5 {[%clk 0:02:21.1]} 12. Qd2 {[%clk 0:02:51.3]} 12... Kh7
{[%clk 0:02:20.2]} 13. g4 {[%clk 0:02:51]} 13... Nf4 {[%clk 0:01:45.6]} 14. Bxf4
{[%clk 0:02:50.5]} 14... exf4 {[%clk 0:01:46.5]} 15. Qxf4 {[%clk 0:02:50.8]}
15... Qe7 {[%clk 0:01:46.4]} 16. Qg3 {[%clk 0:02:30.7]} 16... Nd7 {[%clk
0:01:44.7]} 17. Nd2 {[%clk 0:02:27.8]} 17... Ne5 {[%clk 0:01:41.1]} 18. Bc2
{[%clk 0:02:27.6]} 18... g5 {[%clk 0:01:38.7]} 19. f4 {[%clk 0:02:26.7]} 19...
gxf4 {[%clk 0:01:37.4]} 20. Rxf4 {[%clk 0:02:27.5]} 20... Ng6 {[%clk 0:01:35.3]}
21. Rf5 {[%clk 0:02:10.5]} 21... Be5 {[%clk 0:01:10.6]} 22. Qf2 {[%clk
0:02:07.7]} 22... Bd4 {[%clk 0:01:07.2]} 0-1

[Event "*** Titled Tuesday Blitz"]
[Site "Chess.com"]
[Date "2020.04.14"]
[Round "5"]
[White "vladimirdamjanovic"]
[Black "VojtechPlat"]
[Result "0-1"]
[WhiteElo "2537"]
[BlackElo "2736"]
[TimeControl "180+1"]
[EndTime "10:47:38 PDT"]
[Termination "VojtechPlat won by resignation"]

1. d4 {[%clk 0:03:00.9]} 1... Nf6 {[%clk 0:02:59.3]} 2. c4 {[%clk 0:02:50.7]}
2... g6 {[%clk 0:02:58.9]} 3. Nc3 {[%clk 0:02:49.3]} 3... d5 {[%clk 0:02:58.2]}
4. cxd5 {[%clk 0:02:50.2]} 4... Nxd5 {[%clk 0:02:57.7]} 5. e4 {[%clk 0:02:50.9]}
5... Nxc3 {[%clk 0:02:57.6]} 6. bxc3 {[%clk 0:02:51.8]} 6... Bg7 {[%clk
0:02:58]} 7. Nf3 {[%clk 0:02:52.4]} 7... c5 {[%clk 0:02:58.4]} 8. Be2 {[%clk
0:02:52.7]} 8... O-O {[%clk 0:02:57.7]} 9. O-O {[%clk 0:02:52.7]} 9... cxd4
{[%clk 0:02:58.1]} 10. cxd4 {[%clk 0:02:53.6]} 10... Nc6 {[%clk 0:02:58.4]} 11.
Be3 {[%clk 0:02:54.2]} 11... Bg4 {[%clk 0:02:58.5]} 12. d5 {[%clk 0:02:54.9]}
12... Bxf3 {[%clk 0:02:58.7]} 13. Bxf3 {[%clk 0:02:55]} 13... Ne5 {[%clk
0:02:58.6]} 14. Be2 {[%clk 0:02:54.7]} 14... Rc8 {[%clk 0:02:58.5]} 15. Rb1
{[%clk 0:02:54.9]} 15... b6 {[%clk 0:02:57.4]} 16. Qa4 {[%clk 0:02:54.6]} 16...
Rc7 {[%clk 0:02:53.6]} 17. f4 {[%clk 0:02:50.8]} 17... Nd7 {[%clk 0:02:51.4]}
18. e5 {[%clk 0:02:45.8]} 18... Nc5 {[%clk 0:02:30.1]} 19. Bxc5 {[%clk
0:02:42.5]} 19... Rxc5 {[%clk 0:02:29.6]} 20. Bf3 {[%clk 0:02:43.4]} 20... Qc7
{[%clk 0:02:28.4]} 21. Rfd1 {[%clk 0:02:37.9]} 21... Rd8 {[%clk 0:02:26.5]} 22.
Qb3 {[%clk 0:02:32.8]} 22... Kf8 {[%clk 0:02:24.3]} 23. g3 {[%clk 0:02:32]}
23... f6 {[%clk 0:02:23.6]} 24. exf6 {[%clk 0:02:22.4]} 24... Bxf6 {[%clk
0:02:22.9]} 25. Qe3 {[%clk 0:02:18.2]} 25... Kg7 {[%clk 0:02:21.5]} 26. Qe2
{[%clk 0:02:14.7]} 26... Rc8 {[%clk 0:02:19.5]} 27. h4 {[%clk 0:02:10.9]} 27...
Rc2 {[%clk 0:02:15.8]} 28. Rd2 {[%clk 0:02:11]} 28... Rxd2 {[%clk 0:01:55.7]}
29. Qxd2 {[%clk 0:02:11.9]} 29... Qc3 {[%clk 0:01:44.7]} 30. Qe2 {[%clk
0:02:09.5]} 30... Qd4+ {[%clk 0:01:41.1]} 31. Kg2 {[%clk 0:02:08.9]} 31... Rc3
{[%clk 0:01:40.9]} 32. Rb3 {[%clk 0:02:03.8]} 32... Rc1 {[%clk 0:01:39.8]} 33.
Re3 {[%clk 0:02:03.4]} 33... Qc5 {[%clk 0:01:37.6]} 34. h5 {[%clk 0:02:00.8]}
34... Rc2 {[%clk 0:01:35]} 0-1

[Event "*** Titled Tuesday Blitz"]
[Site "Chess.com"]
[Date "2020.04.14"]
[Round "5"]
[White "SaguriGuerra"]
[Black "VinzentSpitzl"]
[Result "0-1"]
[WhiteElo "2519"]
[BlackElo "2363"]
[TimeControl "180+1"]
[EndTime "10:47:41 PDT"]
[Termination "VinzentSpitzl won by resignation"]

1. e4 {[%clk 0:02:58.1]} 1... c6 {[%clk 0:02:59.4]} 2. d4 {[%clk 0:02:57.8]}
2... d5 {[%clk 0:02:59.7]} 3. e5 {[%clk 0:02:58.5]} 3... c5 {[%clk 0:02:59.8]}
4. dxc5 {[%clk 0:02:58]} 4... e6 {[%clk 0:03:00.3]} 5. a3 {[%clk 0:02:57.5]}
5... Nc6 {[%clk 0:03:00]} 6. b4 {[%clk 0:02:57.1]} 6... a5 {[%clk 0:03:00.1]} 7.
b5 {[%clk 0:02:22.8]} 7... Nxe5 {[%clk 0:02:59.8]} 8. Bb2 {[%clk 0:02:23.4]}
8... Qc7 {[%clk 0:02:53.6]} 9. Qd4 {[%clk 0:02:13.5]} 9... Nd7 {[%clk
0:02:43.5]} 10. Nf3 {[%clk 0:02:01.4]} 10... Ngf6 {[%clk 0:02:33.5]} 11. c6
{[%clk 0:01:57.1]} 11... bxc6 {[%clk 0:02:28.1]} 12. bxc6 {[%clk 0:01:58]} 12...
Qxc6 {[%clk 0:02:28.4]} 13. Nc3 {[%clk 0:01:58.4]} 13... Bc5 {[%clk 0:02:22.6]}
14. Qh4 {[%clk 0:01:58.2]} 14... Rb8 {[%clk 0:02:16.5]} 15. Rb1 {[%clk
0:01:55.9]} 15... Bxa3 {[%clk 0:01:43.8]} 16. Bb5 {[%clk 0:01:51.2]} 16... Rxb5
{[%clk 0:01:31.2]} 17. Nxb5 {[%clk 0:01:49.6]} 17... Qxb5 {[%clk 0:01:21.4]} 18.
Nd4 {[%clk 0:01:49.2]} 18... Bb4+ {[%clk 0:01:13.4]} 19. c3 {[%clk 0:01:48.9]}
19... Bxc3+ {[%clk 0:01:10.6]} 0-1

[Event "*** Titled Tuesday Blitz"]
[Site "Chess.com"]
[Date "2020.04.14"]
[Round "5"]
[White "Joshukid"]
[Black "TengisChess"]
[Result "0-1"]
[WhiteElo "2563"]
[BlackElo "2405"]
[TimeControl "180+1"]
[EndTime "10:47:46 PDT"]
[Termination "TengisChess won by resignation"]

1. Nf3 {[%clk 0:03:00.9]} 1... Nf6 {[%clk 0:02:59.6]} 2. c4 {[%clk 0:02:59.9]}
2... g6 {[%clk 0:02:59.9]} 3. b3 {[%clk 0:02:59.7]} 3... Bg7 {[%clk 0:03:00.5]}
4. Bb2 {[%clk 0:02:59]} 4... O-O {[%clk 0:03:01.4]} 5. g3 {[%clk 0:02:55.9]}
5... a5 {[%clk 0:03:01.8]} 6. Nc3 {[%clk 0:02:34.2]} 6... c6 {[%clk 0:03:01.5]}
7. Bg2 {[%clk 0:02:32.8]} 7... d5 {[%clk 0:03:01.9]} 8. d4 {[%clk 0:02:33.4]}
8... Na6 {[%clk 0:03:01.8]} 9. O-O {[%clk 0:02:32.6]} 9... Bg4 {[%clk
0:03:01.7]} 10. Ne5 {[%clk 0:02:20.1]} 10... Be6 {[%clk 0:03:01.9]} 11. cxd5
{[%clk 0:02:19.6]} 11... Nxd5 {[%clk 0:03:00.1]} 12. Nd3 {[%clk 0:02:15.5]}
12... Nab4 {[%clk 0:02:59.7]} 13. Nxb4 {[%clk 0:02:08.4]} 13... axb4 {[%clk
0:02:59]} 14. Nxd5 {[%clk 0:02:03.2]} 14... cxd5 {[%clk 0:02:57.8]} 15. Qd2
{[%clk 0:02:00.2]} 15... Qb6 {[%clk 0:02:57.1]} 16. Rfc1 {[%clk 0:01:55]} 16...
Rfc8 {[%clk 0:02:56.4]} 17. e3 {[%clk 0:01:54.1]} 17... Rxc1+ {[%clk 0:02:55.7]}
18. Qxc1 {[%clk 0:01:51.2]} 18... Qb5 {[%clk 0:02:50.4]} 19. Qc7 {[%clk
0:01:47.3]} 19... Qe2 {[%clk 0:02:32.7]} 20. Qc1 {[%clk 0:01:29.8]} 20... Rc8
{[%clk 0:02:31.8]} 21. Qe1 {[%clk 0:00:39.9]} 21... Qxb2 {[%clk 0:02:29.7]} 22.
Bf1 {[%clk 0:00:33.8]} 22... Qc3 {[%clk 0:02:25.5]} 23. Qe2 {[%clk 0:00:32.7]}
0-1

[Event "*** Titled Tuesday Blitz"]
[Site "Chess.com"]
[Date "2020.04.14"]
[Round "5"]
[White "JustWatch000"]
[Black "TigrVShlyape"]
[Result "0-1"]
[WhiteElo "2626"]
[BlackElo "2856"]
[TimeControl "180+1"]
[EndTime "10:47:50 PDT"]
[Termination "TigrVShlyape won by resignation"]

1. Nf3 {[%clk 0:02:59.8]} 1... Nf6 {[%clk 0:02:59.1]} 2. c4 {[%clk 0:02:59.5]}
2... g6 {[%clk 0:02:58.6]} 3. Nc3 {[%clk 0:02:59.7]} 3... Bg7 {[%clk 0:02:58.9]}
4. g3 {[%clk 0:03:00.3]} 4... d6 {[%clk 0:02:59]} 5. Bg2 {[%clk 0:03:00.8]} 5...
O-O {[%clk 0:02:59.5]} 6. d4 {[%clk 0:03:00.1]} 6... Nc6 {[%clk 0:02:59.5]} 7.
O-O {[%clk 0:03:00.3]} 7... e5 {[%clk 0:02:57.8]} 8. dxe5 {[%clk 0:02:58.6]}
8... dxe5 {[%clk 0:02:56.8]} 9. Bg5 {[%clk 0:02:58.2]} 9... h6 {[%clk
0:02:53.9]} 10. Bxf6 {[%clk 0:02:55.9]} 10... Bxf6 {[%clk 0:02:53.1]} 11. Nd2
{[%clk 0:02:56.1]} 11... Bg7 {[%clk 0:02:44.8]} 12. Nde4 {[%clk 0:02:45.4]}
12... f5 {[%clk 0:02:40.5]} 13. Nc5 {[%clk 0:02:45.3]} 13... e4 {[%clk
0:02:38.3]} 14. Qd5+ {[%clk 0:02:37.5]} 14... Kh7 {[%clk 0:02:33.2]} 15. Rad1
{[%clk 0:02:34.8]} 15... Qe7 {[%clk 0:02:31.9]} 16. Nb3 {[%clk 0:01:48.4]} 16...
Be6 {[%clk 0:02:28.9]} 17. Qb5 {[%clk 0:01:47.5]} 17... Rab8 {[%clk 0:02:24.7]}
18. Nd5 {[%clk 0:01:46.7]} 18... Qf7 {[%clk 0:02:22]} 19. Nc5 {[%clk 0:01:44.7]}
19... a6 {[%clk 0:02:19.9]} 20. Qa4 {[%clk 0:01:41.9]} 20... Bc8 {[%clk
0:02:09.4]} 21. Nxa6 {[%clk 0:01:29.1]} 21... Ra8 {[%clk 0:02:07.8]} 22. Ndxc7
{[%clk 0:01:27.7]} 22... Qxc7 {[%clk 0:02:05.9]} 23. Nxc7 {[%clk 0:01:25.8]}
23... Rxa4 {[%clk 0:02:05.7]} 24. b3 {[%clk 0:01:23.6]} 24... Rxa2 {[%clk
0:02:05]} 25. f3 {[%clk 0:01:23.6]} 25... e3 {[%clk 0:02:02]} 26. f4 {[%clk
0:01:19.8]} 26... Nd4 {[%clk 0:02:01.3]} 0-1